bitfinex/quotes_ETHUSD_20250814
["timestamp","ask_amount","ask_price","bid_price","bid_amount"]
[1755207937658,9.17569181,4464.9,4464.8,2.4725]
[1755207937975,2.23994265,4464.4,4464.3,0.4616]
[1755207938284,35.23999283,4464.3,4464.2,2.46]
[1755207939053,35.70228975,4464.3,4464.2,2.46]
[1755207939254,2.23999283,4464.3,4464.2,5.3941]
[1755207939674,2.23999283,4464.3,4464.2,6.1625]
[1755207939862,9.17599283,4464.3,4464.2,6.1625]
[1755207940182,9.17599283,4464.3,4464.2,3.69]
[1755207940382,5.23999283,4464.3,4464.2,3.69]
[1755207940695,5.44084274,4464.3,4464.2,3.69]
[1755207940877,5.90367295,4464.3,4464.2,6.5741]
[1755207941190,0.16629115,4464.9,4464.2,7.8041]
[1755207941352,0.57799157,4465.2,4464.5,0.112]
[1755207941706,2.44014835,4465.7,4465.0,0.112]
[1755207941883,0.46288864,4465.9,4465.1,2.9341]
[1755207942083,0.17004269,4465.9,4465.2,0.4616]
[1755207942300,0.77913722,4466.5,4465.8,0.112]
[1755207942606,2.23910263,4466.1,4465.8,1.342]
[1755207942774,4.71513722,4466.1,4465.9,2.9341]
[1755207942974,0.46288864,4466.1,4466.0,2.9341]
[1755207943171,3.936,4466.4,4466.0,2.9341]
[1755207943387,0.20149908,4466.3,4466.1,2.9341]
[1755207943559,0.57799157,4466.7,4466.3,0.112]
[1755207943765,4.51299157,4466.6,4466.4,2.4725]
[1755207943994,3.20167682,4466.5,4466.4,2.4725]
[1755207944197,0.66456546,4466.5,4466.3,1.342]
[1755207944509,4.71466839,4466.5,4466.3,1.342]
[1755207944672,0.77966839,4466.4,4466.3,1.342]
[1755207945261,0.20167682,4466.4,4466.3,2.572]
[1755207945458,6.01860802,4466.4,4466.3,2.572]
[1755207945692,5.90350509,4466.4,4466.3,2.572]
[1755207945887,5.90350509,4466.4,4466.3,5.5061]
[1755207946075,6.0227546,4466.4,4466.3,5.5061]
[1755207946476,5.44094512,4466.4,4466.3,6.7361]
[1755207946677,5.90383376,4466.4,4466.3,6.7361]
[1755207947079,5.44094512,4466.4,4466.3,6.7361]
[1755207947493,6.21433657,4466.4,4466.3,6.7361]
[1755207948074,6.67722521,4466.4,4466.3,7.9661]
[1755207948264,10.61122521,4466.4,4466.3,5.032]
[1755207948461,9.83783376,4466.4,4466.3,5.032]
[1755207948665,11.00764187,4466.4,4466.3,5.032]
[1755207948867,41.17891932,4466.4,4466.3,5.032]
[1755207949163,41.30031026,4466.4,4466.3,2.0067322]
[1755207949364,41.29091932,4466.4,4466.3,3.2367322]
[1755207950106,39.94883376,4466.4,4466.3,3.2367322]
[1755207950414,40.07017958,4466.4,4466.3,3.2367322]
[1755207950704,39.94883376,4466.4,4466.3,3.2367322]
[1755207950903,10.07016419,4466.4,4466.3,4.4667322]
[1755207951105,9.94883376,4466.4,4466.3,4.4667322]
[1755207951410,42.78148125,4466.4,4466.3,4.4667322]
[1755207951701,40.91478802,4466.4,4466.3,4.4667322]
[1755207951902,36.86066564,4466.4,4466.3,4.4667322]
[1755207952107,40.6161914,4466.4,4466.3,4.4667322]
[1755207952473,42.14646168,4466.4,4466.3,4.4667322]
[1755207952808,44.35092572,4466.4,4466.3,4.4667322]
[1755207952974,44.02248498,4466.4,4466.3,4.4667322]
[1755207953498,43.69208498,4466.4,4466.3,4.4667322]
[1755207953674,38.2298147,4466.4,4466.3,2.04628885]
[1755207953884,42.1618147,4466.4,4466.3,2.04628885]
[1755207954467,38.2298147,4466.4,4466.3,2.04628885]
[1755207954664,42.1608147,4466.4,4466.3,2.04628885]
[1755207955081,3.0,4466.3,4465.8,1.23]
[1755207955285,3.0,4466.1,4465.8,1.23]
[1755207955466,3.0,4465.9,4465.8,1.23]
[1755207955679,33.78641103,4465.9,4465.8,1.23]
[1755207956077,37.71741103,4465.9,4465.8,1.23]
[1755207956281,39.95660133,4465.9,4465.8,1.23]
[1755207956798,42.16106537,4465.9,4465.8,1.23]
[1755207956977,12.16106537,4465.9,4465.8,1.23]
[1755207957298,38.23006537,4465.9,4465.8,1.23]
[1755207957604,39.75438815,4465.9,4465.8,1.23]
[1755207957772,39.95715172,4465.9,4465.8,2.46]
[1755207957967,39.95615172,4465.9,4465.8,2.46]
[1755207958385,40.91277591,4465.9,4465.8,2.46]
[1755207959101,40.91277591,4465.9,4465.8,0.64446147]
[1755207959300,43.11723995,4465.9,4465.8,0.64446147]
[1755207959780,3.0,4465.8,4464.2,4.87]
[1755207960099,0.58434086,4464.4,4464.3,0.4341]
[1755207960397,0.78710443,4464.4,4464.3,2.7997]
[1755207960578,0.20288968,4464.4,4464.3,2.7997]
[1755207960896,2.23999283,4464.3,4464.2,4.87]
[1755207961098,2.6088606,4464.3,4464.2,4.87]
[1755207961323,3.07174924,4464.3,4464.2,4.87]
[1755207961598,3.07174924,4464.3,4464.2,7.3476]
[1755207961796,3.07174924,4464.3,4464.2,7.7817]
[1755207962219,2.44288251,4464.3,4464.2,7.7817]
[1755207962572,2.23999283,4464.3,4464.2,7.7817]
[1755207962822,0.66577832,4464.4,4464.2,7.92039412]
[1755207963117,3.928,4464.8,4464.3,2.7997]
[1755207963415,0.20288968,4464.7,4464.4,2.7997]
[1755207963714,0.20288968,4464.7,4464.5,2.7997]
[1755207963873,36.16787119,4464.6,4464.5,0.4341]
[1755207964095,32.90987497,4464.6,4464.5,0.4341]
[1755207964294,32.90987497,4464.6,4464.5,0.5461]
[1755207964530,6.83787497,4464.6,4464.5,0.112]
[1755207964715,36.83787497,4464.6,4464.5,0.112]
[1755207965793,6.83787497,4464.6,4464.5,0.112]
[1755207966224,36.83787497,4464.6,4464.5,0.112]
[1755207966803,6.83787497,4464.6,4464.5,0.112]
[1755207967333,36.83787497,4464.6,4464.5,0.112]
[1755207969329,32.90987497,4464.6,4464.5,0.112]
[1755207969528,37.0024456,4464.6,4464.5,0.112]
[1755207969898,7.0024456,4464.6,4464.5,2.4776]
[1755207970299,37.0024456,4464.6,4464.5,2.4776]
[1755207970527,32.6093315,4464.6,4464.5,2.9117]
[1755207971202,33.07650687,4464.6,4464.5,2.9117]
[1755207971401,32.6093315,4464.6,4464.5,2.9117]
[1755207973834,35.90236509,4464.6,4464.3,0.001]
[1755207974036,34.59318574,4464.5,4464.3,0.001]
[1755207974222,30.20288968,4464.4,4464.3,0.001]
[1755207974939,36.83320694,4464.4,4464.3,0.001]
[1755207975435,35.91020694,4464.4,4464.3,0.001]
[1755207975634,39.83220694,4464.4,4464.3,0.001]
[1755207976237,35.91020694,4464.4,4464.3,0.001]
[1755207976734,39.83220694,4464.4,4464.3,0.001]
[1755207976941,35.91020694,4464.4,4464.3,0.001]
[1755207977105,39.36483233,4464.4,4464.3,0.001]
[1755207977432,35.91047461,4464.4,4464.3,0.001]
[1755207977640,39.36483233,4464.4,4464.3,0.001]
[1755207978010,9.36483233,4464.4,4464.3,0.001]
[1755207978216,9.36483233,4464.4,4464.3,2.8007]
[1755207978217,39.36483233,4464.4,4464.3,2.8007]
[1755207978432,39.83263537,4464.4,4464.3,2.8007]
[1755207979517,39.83263537,4464.4,4464.3,2.8007]
[1755207979716,39.83263537,4464.4,4464.3,2.3666]
[1755207980234,39.83263537,4464.4,4464.3,2.8007]
[1755207981039,39.82963537,4464.4,4464.3,2.8007]
[1755207981549,39.82963537,4464.4,4464.3,0.001]
[1755207981736,39.82963537,4464.4,4464.3,2.9284]
[1755207982250,5.23994265,4464.4,4464.3,2.9284]
[1755207983839,5.23994265,4464.4,4464.3,2.5882]
[1755207984220,5.23994265,4464.4,4464.3,3.0404]
[1755207985246,5.23994265,4464.4,4464.3,2.5882]
[1755207985446,5.23994265,4464.4,4464.3,0.113]
[1755207985752,5.23994265,4464.4,4464.3,0.001]
[1755207985954,5.23994265,4464.4,4464.3,2.9284]
[1755207987457,3.0,4464.4,4464.3,2.9284]
[1755207987874,33.5276894,4464.4,4464.3,0.001]
[1755207988022,34.34406338,4464.4,4464.3,0.001]
[1755207988434,34.92840424,4464.4,4464.3,0.001]
[1755207988757,34.34400826,4464.4,4464.3,0.001]
[1755207989053,36.58395091,4464.4,4464.3,0.001]
[1755207989257,36.26010788,4464.4,4464.3,0.001]
[1755207989957,6.26010788,4464.4,4464.3,0.001]
[1755207990158,36.26010788,4464.4,4464.3,0.001]
[1755207990461,36.37210788,4464.4,4464.3,0.001]
[1755207992131,36.02516479,4464.4,4464.3,2.9284]
[1755207992331,5.91316479,4464.4,4464.3,2.9284]
[1755207993042,35.91316479,4464.4,4464.3,0.001]
[1755207993560,36.49980835,4464.4,4464.3,0.001]
[1755207993764,38.70427239,4464.4,4464.3,0.001]
[1755207994926,36.49980835,4464.4,4464.3,0.001]
[1755207995264,35.91316479,4464.4,4464.3,0.001]
[1755207996664,35.91316479,4464.4,4464.3,2.4762]
[1755207996832,35.91316479,4464.4,4464.3,0.001]
[1755207997331,35.70937354,4464.4,4464.3,0.001]
[1755207997536,35.91319424,4464.4,4464.3,0.001]
[1755207997736,5.70937354,4464.4,4464.3,0.001]
[1755207998765,5.70937354,4464.4,4464.3,2.4762]
[1755207998965,5.70937354,4464.4,4464.3,2.9284]
[1755208000034,5.23994265,4464.4,4464.3,2.9284]
[1755208001643,0.16630977,4464.6,4464.3,3.0404]
[1755208001846,3.31582599,4465.2,4464.4,2.9274]
[1755208002045,0.30109303,4465.1,4464.3,0.113]
[1755208002243,0.112,4464.8,4464.3,0.113]
[1755208002975,4.68836816,4465.2,4464.4,2.4752]
[1755208003678,0.112,4464.8,4464.4,2.4752]
[1755208003846,0.112,4465.0,4464.5,2.9274]
[1755208004174,0.112,4465.0,4464.6,2.4752]
[1755208004670,0.2789842,4465.2,4464.3,0.113]
[1755208004872,3.112,4465.2,4464.3,0.113]
[1755208005174,4.40921826,4465.2,4464.3,0.113]
[1755208005468,4.40921826,4465.2,4464.3,0.5652]
[1755208005672,4.40921826,4465.2,4464.4,2.4752]
[1755208006044,4.57824806,4465.2,4464.4,2.4752]
[1755208006639,3.75066081,4465.2,4464.4,2.4752]
[1755208006840,3.75066081,4465.2,4464.5,0.112]
[1755208007488,3.0,4465.0,4464.5,0.112]
[1755208007639,3.46963101,4465.0,4464.5,0.112]
[1755208008251,3.46963101,4465.0,4464.3,0.001]
[1755208008581,0.112,4464.9,4464.3,0.113]
[1755208009688,3.112,4464.9,4464.3,0.113]
[1755208009887,0.112,4464.9,4464.3,0.113]
[1755208010544,0.112,4464.9,4464.3,0.001]
[1755208014084,0.3304,4464.8,4464.3,0.001]
[1755208014283,0.42395074,4464.7,4464.3,0.001]
[1755208014690,2.23994265,4464.4,4464.3,0.001]
[1755208014872,2.23994265,4464.4,4464.3,2.3498]
[1755208015081,2.23994265,4464.4,4464.3,0.001]
[1755208016181,2.23994265,4464.4,4464.3,2.3498]
[1755208016493,2.23994265,4464.4,4464.3,2.7963]
[1755208016789,4.48264356,4465.0,4464.3,2.7963]
[1755208016790,0.2810298,4465.2,4464.3,2.7963]
[1755208017089,0.2810298,4465.2,4464.6,0.112]
[1755208017492,0.2810298,4465.2,4464.6,2.4608]
[1755208017679,0.2810298,4465.2,4464.6,2.9073]
[1755208018066,2.40857195,4465.2,4464.9,0.112]
[1755208018271,2.23968758,4465.0,4464.9,0.112]
[1755208018492,0.16603591,4465.2,4464.9,0.112]
[1755208018667,0.002,4465.8,4464.9,0.112]
[1755208018668,2.23936339,4465.6,4464.9,0.112]
[1755208018870,2.23936339,4465.6,4465.0,2.7953]
[1755208019198,2.23936339,4465.6,4465.3,0.112]
[1755208019375,0.002,4465.8,4465.3,0.112]
[1755208019691,0.002,4465.8,4465.4,2.7953]
[1755208019892,0.002,4465.8,4465.7,0.112]
[1755208020463,0.16917971,4465.8,4465.7,2.9073]
[1755208022365,0.002,4465.8,4465.7,3.19803]
[1755208022598,0.002,4465.8,4465.7,2.9073]
[1755208023688,2.24124044,4465.8,4465.7,2.9073]
[1755208025013,0.002,4465.8,4465.7,2.9073]
[1755208025213,0.16855941,4465.8,4465.7,2.9073]
[1755208025426,0.002,4465.8,4465.7,2.9073]
[1755208026490,0.17025266,4465.8,4465.7,2.9073]
[1755208026720,0.002,4465.8,4465.7,2.9073]
[1755208028004,0.002,4465.8,4465.7,0.112]
[1755208028190,2.24124044,4465.8,4465.7,2.4608]
[1755208028392,2.24124044,4465.8,4465.7,2.9073]
[1755208028709,0.002,4465.8,4465.7,2.4608]
[1755208028886,0.002,4465.8,4465.7,2.9073]
[1755208031703,0.002,4465.8,4465.7,6.04955921]
[1755208032504,0.002,4465.8,4465.7,6.59955921]
[1755208033113,0.002,4465.8,4465.7,3.81026862]
[1755208033328,0.002,4465.8,4465.7,2.9073]
[1755208034140,0.002,4465.8,4465.7,5.14659059]
[1755208034535,0.002,4465.8,4465.7,5.69659059]
[1755208034917,0.002,4465.8,4465.7,5.58459059]
[1755208035310,0.002,4466.3,4466.2,2.78903989]
[1755208035651,0.002,4466.3,4466.2,3.31424549]
[1755208035856,0.002,4466.3,4466.2,9.98854549]
[1755208036146,0.002,4466.3,4466.2,9.9661551]
[1755208036357,0.002,4467.3,4466.8,0.55]
[1755208036551,1e-08,4467.2,4467.1,2.78858879]
[1755208036754,0.3304,4470.7,4468.1,2.23808777]
[1755208036921,0.002,4470.8,4468.8,2.2377372]
[1755208037128,0.002,4470.8,4468.8,6.1157372]
[1755208037447,0.92768568,4470.6,4468.8,8.9110372]
[1755208037636,2.23724153,4469.8,4468.8,8.9100372]
[1755208037817,2.23703062,4470.3,4468.8,10.62982319]
[1755208038019,2.23703062,4470.3,4468.8,6.75282319]
[1755208038351,2.23719392,4469.9,4468.8,10.62882319]
[1755208038512,0.38284919,4470.6,4468.8,10.62882319]
[1755208039363,0.0766105,4470.6,4468.8,10.62882319]
[1755208039662,0.002,4470.8,4469.8,0.55]
[1755208039858,0.002,4470.8,4470.0,2.2371312]
[1755208040053,0.002,4470.8,4470.1,0.66621312]
[1755208040346,0.002,4470.8,4470.1,1.11271312]
[1755208040660,0.002,4470.8,4470.3,2.23693922]
[1755208040859,0.002,4470.8,4470.4,3.874]
[1755208041259,0.002,4470.8,4470.4,6.11093387]
[1755208041479,0.002,4470.8,4470.5,2.7953]
[1755208041880,0.002,4470.8,4470.6,2.9557]
[1755208042079,0.002,4470.8,4470.7,2.80915404]
[1755208042280,0.002,4470.8,4470.7,3.27035404]
[1755208042481,0.002,4470.8,4470.7,5.76485404]
[1755208042673,0.002,4470.8,4470.7,5.74248618]
[1755208043006,1e-08,4470.8,4470.7,7.01688487]
[1755208043183,1e-08,4470.8,4470.7,10.01688487]
[1755208044493,0.002,4471.3,4470.7,10.01688487]
[1755208044494,1e-08,4471.3,4471.2,2.78653605]
[1755208044650,1e-08,4471.3,4471.2,6.67890141]
[1755208044851,1e-08,4471.3,4471.2,9.61223605]
[1755208045146,1e-08,4471.3,4471.2,10.79712098]
[1755208045755,1e-08,4471.7,4471.6,2.78633598]
[1755208045976,1e-08,4471.7,4471.6,6.78969933]
[1755208046177,1e-08,4471.7,4471.6,5.85403598]
[1755208046355,1e-08,4471.7,4470.9,2.4945]
[1755208046556,0.3304,4471.6,4470.8,3.868]
[1755208046782,1e-08,4471.7,4470.8,3.868]
[1755208046988,0.3304,4471.6,4470.8,3.868]
[1755208047187,2.2364914,4471.3,4470.8,3.868]
[1755208047358,2.23630173,4471.7,4470.8,3.868]
[1755208047686,2.23644291,4471.4,4470.8,3.868]
[1755208048158,1e-08,4471.7,4470.8,3.868]
[1755208048356,1e-08,4471.7,4470.8,4.2548]
[1755208049203,2.23639448,4471.5,4470.8,4.2548]
[1755208049573,2.23639448,4471.5,4470.9,3.865]
[1755208049768,2.23644823,4471.4,4470.9,3.865]
[1755208052588,2.23633598,4471.6,4470.9,3.865]
[1755208054091,2.23654154,4471.2,4470.9,3.865]
[1755208054258,2.23654154,4471.2,4470.9,6.3595]
[1755208054661,0.17045689,4471.7,4470.9,6.3595]
[1755208054662,0.17045689,4471.7,4470.9,3.865]
[1755208054887,2.23649537,4471.3,4470.9,3.865]
[1755208055993,0.002,4471.2,4470.9,3.865]
[1755208056495,0.002,4471.2,4471.1,0.112]
[1755208056674,2.23853605,4471.2,4471.1,0.112]
[1755208056870,0.002,4471.2,4471.1,0.112]
[1755208058866,2.23853605,4471.2,4471.1,3.97]
[1755208059207,2.23853605,4471.2,4471.1,0.112]
[1755208059414,2.56893605,4471.2,4471.1,0.112]
[1755208059779,2.23853605,4471.2,4471.1,0.112]
[1755208061411,2.44036407,4471.2,4471.1,0.112]
[1755208063477,2.4408911,4471.2,4471.1,0.112]
[1755208064301,3.02753466,4471.2,4471.1,0.112]
[1755208065007,3.02753466,4471.2,4471.1,0.11281222]
[1755208065188,2.9056519,4471.2,4471.1,0.11281222]
[1755208065904,2.4408911,4471.2,4471.1,2.60731222]
[1755208066103,2.4408911,4471.2,4471.1,0.11281222]
[1755208066301,2.9056519,4471.2,4471.1,0.11281222]
[1755208067710,3.68477305,4471.2,4471.1,0.11281222]
[1755208068573,2.9056519,4471.2,4471.1,0.11281222]
[1755208069186,3.68477305,4471.2,4471.1,0.11281222]
[1755208069392,6.68477305,4471.2,4471.1,0.11281222]
[1755208069607,5.9056519,4471.2,4471.1,0.11281222]
[1755208069814,4.448237,4471.2,4471.1,0.11281222]
[1755208069978,5.9056519,4471.2,4471.1,0.11281222]
[1755208070891,6.68477305,4471.2,4471.1,0.11281222]
[1755208071105,5.9056519,4471.2,4471.1,0.11281222]
[1755208071301,3.66911585,4471.2,4471.1,2.60731222]
[1755208071517,0.58684134,4471.3,4471.2,0.55]
[1755208071811,0.58684134,4471.6,4471.2,9.01443605]
[1755208072118,0.58684135,4471.7,4471.5,2.236386]
[1755208072412,1e-08,4471.7,4471.5,2.348386]
[1755208072631,1e-08,4471.7,4471.6,6.29906458]
[1755208072914,1e-08,4471.7,4471.6,5.74906458]
[1755208075713,1e-08,4471.7,4471.6,9.59406458]
[1755208076824,0.002,4472.2,4471.7,0.02499999]
[1755208077013,0.002,4472.2,4472.1,2.23608595]
[1755208077213,0.002,4472.2,4472.1,6.63931073]
[1755208077597,0.002,4472.2,4472.1,9.56921073]
[1755208080732,1e-08,4472.2,4472.1,12.45721073]
[1755208081042,1e-08,4472.2,4472.1,12.56921073]
[1755208081220,1e-08,4472.3,4472.2,5.23603595]
[1755208081425,1e-08,4472.6,4472.5,2.23588596]
[1755208081643,1e-08,4472.6,4472.5,5.23588596]
[1755208081843,1e-08,4472.6,4472.5,12.00478596]
[1755208082199,1e-08,4472.6,4472.5,12.11678596]
[1755208082503,1e-08,4472.6,4472.5,13.72247467]
[1755208084232,1e-08,4472.8,4472.7,2.23578599]
[1755208084437,1e-08,4472.8,4472.7,2.25814384]
[1755208084633,1e-08,4472.8,4472.7,12.02504384]
[1755208084831,1e-08,4472.8,4472.7,12.00268599]
[1755208085046,1e-08,4472.8,4472.7,13.19155389]
[1755208085253,0.002,4473.6,4473.5,2.23538616]
[1755208085559,0.002,4473.6,4473.5,6.20574002]
[1755208085710,0.002,4473.6,4473.5,9.11328616]
[1755208086242,0.002,4475.8,4473.7,3.0]
[1755208086408,0.002,4475.8,4475.7,0.112]
[1755208086607,0.002,4475.8,4475.7,3.947]
[1755208086810,0.6751,4476.5,4475.7,3.947]
[1755208086811,1.91384419,4478.5,4475.7,6.8769]
[1755208087104,1.91384419,4480.4,4476.7,5.23378828]
[1755208087332,31.0055,4480.3,4480.1,0.112]
[1755208087531,1.0055,4480.3,4480.1,0.112]
[1755208087738,1.0055,4480.2,4480.1,0.112]
[1755208088039,1.0055,4480.2,4479.3,3.834]
[1755208088243,1.0055,4480.1,4477.7,3.0]
[1755208088430,3.0,4480.0,4478.8,2.23273086]
[1755208088611,0.3324,4479.9,4478.7,2.23277642]
[1755208088944,0.3324,4479.9,4478.8,3.832]
[1755208089113,0.6731,4479.8,4478.9,3.832]
[1755208089323,0.6731,4479.8,4479.0,3.832]
[1755208089518,0.6731,4479.8,4479.7,0.112]
[1755208090053,0.3324,4479.8,4479.7,0.112]
[1755208090251,3.08142523,4480.9,4479.3,3.832]
[1755208090252,0.3324,4480.4,4479.3,3.832]
[1755208090418,0.3324,4480.4,4479.4,2.23243554]
[1755208090623,2.23204809,4480.2,4479.3,3.832]
[1755208090831,3.23740651,4480.1,4478.4,2.23290652]
[1755208091057,3.3324,4480.0,4478.7,2.23275589]
[1755208091251,0.3324,4479.9,4478.7,2.23275589]
[1755208091455,0.3324,4481.8,4478.9,3.0]
[1755208091656,30.3324,4481.7,4479.0,3.832]
[1755208091832,34.0053,4481.6,4478.9,3.0]
[1755208092021,3.0,4480.9,4479.2,2.23254152]
[1755208092322,0.85556706,4480.8,4479.3,3.83]
[1755208092528,2.23171525,4480.9,4478.8,2.9299]
[1755208092529,2.23206674,4480.2,4479.1,2.23256545]
[1755208092738,0.3324,4480.2,4479.1,2.23256545]
[1755208092937,0.3324,4480.2,4479.2,6.06254141]
[1755208093134,2.23200722,4480.3,4479.3,2.23248908]
[1755208093340,2.2319333,4480.5,4479.5,2.23238959]
[1755208093667,2.231822,4480.7,4479.3,2.23245078]
[1755208093954,2.2320006,4480.3,4479.6,3.83]
[1755208095162,2.23205612,4480.2,4479.7,3.829]
[1755208095463,2.23199091,4480.4,4479.7,3.829]
[1755208095820,2.23159492,4481.1,4479.8,3.829]
[1755208096025,0.25639949,4481.0,4479.8,3.829]
[1755208096225,0.25639949,4481.0,4479.9,3.829]
[1755208096531,2.23202805,4480.3,4480.0,3.829]
[1755208096924,2.2319347,4480.5,4480.0,3.829]
[1755208097444,0.3324,4481.1,4480.0,3.829]
[1755208097762,2.23178243,4480.8,4480.0,3.829]
[1755208097962,2.23178243,4480.8,4480.1,3.828]
[1755208098160,2.23170127,4480.9,4480.1,3.828]
[1755208098327,3.0,4481.0,4480.1,3.827]
[1755208098724,2.23169452,4480.9,4480.1,3.827]
[1755208099241,0.002,4481.3,4480.1,3.827]
[1755208099424,2.23189288,4480.6,4479.8,4.68814241]
[1755208099623,2.23189288,4480.6,4479.9,3.827]
[1755208099846,2.23189288,4480.6,4480.0,3.827]
[1755208100163,2.23179686,4480.7,4480.0,3.827]
[1755208100332,2.23184394,4480.6,4480.5,0.1112]
[1755208100651,2.23179568,4480.7,4480.0,3.68728007]
[1755208100822,2.23173771,4480.9,4480.6,0.1112]
[1755208101023,2.23148834,4481.4,4480.7,2.4559]
[1755208101227,2.23148834,4481.4,4480.6,0.1112]
[1755208101228,0.16374823,4481.7,4480.6,0.1112]
[1755208101558,0.16374823,4481.7,4479.9,2.4559]
[1755208101559,2.23349532,4481.3,4481.2,0.1112]
[1755208101760,5.97998684,4481.3,4481.2,0.1112]
[1755208102958,4.08089152,4481.3,4480.2,3.826]
[1755208103123,2.23199339,4480.3,4479.9,3.826]
[1755208103323,2.23199339,4480.3,4479.5,2.23238818]
[1755208103556,3.0,4480.7,4480.2,0.112]
[1755208103735,3.0,4480.7,4479.6,6.6465]
[1755208103736,5.23154726,4481.2,4479.7,3.826]
[1755208103944,2.23179413,4480.7,4480.6,0.1112]
[1755208104251,2.23168772,4481.0,4480.1,0.4596]
[1755208104566,3.0,4481.1,4480.1,4.2846]
[1755208104739,3.0,4481.2,4480.1,3.825]
[1755208104939,0.62387926,4481.2,4481.0,0.1112]
[1755208105232,0.3344,4481.3,4481.0,0.1112]
[1755208105233,0.002,4481.3,4481.0,0.1112]
[1755208105436,0.002,4481.3,4481.0,2.9317]
[1755208105963,0.002,4481.3,4481.1,2.8205]
[1755208106255,0.002,4481.3,4481.2,0.1112]
[1755208106425,0.002,4481.3,4480.6,2.8205]
[1755208106624,0.002,4481.3,4481.2,0.1112]
[1755208106866,0.002,4481.3,4481.2,2.34274512]
[1755208107059,0.002,4481.3,4481.2,5.16324512]
[1755208107356,0.002,4481.3,4481.2,5.90273152]
[1755208108464,0.002,4481.3,4481.2,9.72573152]
[1755208108764,0.002,4481.3,4481.2,5.90273152]
[1755208108970,0.002,4481.3,4481.2,9.72573152]
[1755208110850,0.002,4481.3,4481.2,5.90273152]
[1755208111060,0.002,4481.3,4481.2,9.72473152]
[1755208111665,1e-08,4481.3,4481.2,9.72473152]
[1755208111850,1e-08,4481.3,4481.2,12.72473152]
[1755208112252,1e-08,4481.3,4481.2,12.61353152]
[1755208113375,1e-08,4481.3,4481.2,12.61253152]
[1755208113876,1e-08,4481.3,4481.2,8.79153152]
[1755208114046,1e-08,4481.3,4481.2,12.61253152]
[1755208114854,0.002,4482.2,4482.1,2.23109703]
[1755208115160,0.002,4482.2,4482.1,6.27520673]
[1755208115375,0.002,4482.2,4482.1,9.09470673]
[1755208116473,0.002,4482.2,4481.9,2.23115492]
[1755208116674,0.002,4482.2,4482.0,3.82]
[1755208117041,0.002,4482.2,4482.1,3.819]
[1755208117860,0.002,4482.2,4481.7,2.23125441]
[1755208118074,0.002,4482.2,4481.8,2.2312339]
[1755208118339,0.002,4482.2,4481.9,3.819]
[1755208118645,0.002,4482.2,4482.0,4.42402784]
[1755208118861,0.002,4482.2,4482.0,3.819]
[1755208119059,0.002,4482.2,4482.1,3.819]
[1755208119272,0.002,4482.2,4481.8,2.23119945]
[1755208119466,0.002,4482.2,4481.9,3.819]
[1755208119873,0.002,4482.2,4481.3,0.02499999]
[1755208120077,0.3324,4482.1,4481.4,3.818]
[1755208120263,0.002,4482.2,4481.4,3.818]
[1755208120778,2.23114134,4482.1,4481.4,3.818]
[1755208120984,2.23121604,4481.9,4481.3,0.02499999]
[1755208121340,1.0053,4481.8,4481.3,0.02499999]
[1755208121545,2.23136663,4481.6,4481.3,0.02499999]
[1755208121779,2.43505243,4481.6,4481.3,0.02499999]
[1755208122154,1.2089858,4481.5,4481.3,0.13619999]
[1755208122562,3.23674553,4481.4,4481.3,0.02499999]
[1755208122774,3.44043133,4481.4,4481.3,0.02499999]
[1755208123647,6.44043133,4481.4,4481.3,0.02499999]
[1755208123971,37.77690694,4481.4,4481.3,0.02499999]
[1755208124571,7.77690694,4481.4,4481.3,0.02499999]
[1755208124970,6.23682714,4481.4,4481.3,0.02499999]
[1755208126082,5.90442714,4481.4,4481.3,0.02499999]
[1755208126248,6.07299625,4481.4,4481.3,0.02499999]
[1755208126798,0.2036858,4481.4,4481.3,0.02499999]
[1755208126962,0.16678072,4482.2,4481.3,2.95669999]
[1755208127280,0.16678072,4482.2,4482.1,2.23109703]
[1755208127672,0.16678072,4482.2,4482.1,5.16279703]
[1755208127849,0.002,4482.2,4482.1,5.16279703]
[1755208128352,0.002,4482.2,4482.1,0.1112]
[1755208128555,0.002,4482.2,4482.1,2.34229703]
[1755208128955,0.002,4482.2,4482.1,5.54214611]
[1755208129282,0.002,4482.2,4482.1,6.00174611]
[1755208130283,0.002,4482.2,4482.1,9.00174611]
[1755208130782,1e-08,4482.2,4482.1,9.00174611]
[1755208130949,1e-08,4482.3,4482.2,2.23104725]
[1755208131148,1e-08,4482.3,4482.2,9.42025643]
[1755208131353,0.46994234,4485.1,4482.2,9.42025643]
[1755208131354,0.46994234,4485.2,4482.3,3.0]
[1755208131662,0.80234234,4487.1,4486.1,0.1112]
[1755208131860,0.3324,4487.0,4486.9,0.1112]
[1755208132165,3.23396057,4487.0,4486.9,0.1112]
[1755208132373,3.85848321,4487.0,4486.9,0.1112]
[1755208132577,31.62982264,4487.0,4484.8,6.1677]
[1755208132756,5.22875991,4486.8,4486.3,0.1112]
[1755208132951,2.22895863,4486.4,4486.3,0.1112]
[1755208133157,0.46994234,4486.9,4486.7,0.1112]
[1755208133490,2.22871024,4486.9,4486.8,0.1112]
[1755208134084,5.56111024,4486.9,4486.8,0.1112]
[1755208134763,5.22871024,4486.9,4486.8,0.1112]
[1755208134963,5.56111024,4486.9,4486.8,0.1112]
[1755208135192,6.38918235,4486.9,4486.8,0.1112]
[1755208135373,6.38918235,4486.9,4485.0,2.3537]
[1755208135374,2.2292502,4485.9,4485.1,3.813]
[1755208135890,2.22906607,4486.2,4485.3,2.22950527]
[1755208136089,2.22902919,4486.3,4486.1,0.1112]
[1755208136393,2.22881147,4486.7,4485.5,0.4693]
[1755208136592,2.47771046,4488.0,4485.5,0.4693]
[1755208136593,0.001,4487.2,4485.7,2.22930646]